fUSD/lending_fUSD_20251215
["ID","MTS","AMOUNT","RATE_DAILY","PERIOD"]
[398530862,1765795576484,-61.38753211,0.00016258,2]
[398530863,1765795576507,-189.51295941,0.00016259,2]
[398530864,1765795578775,-402.74111737,0.00016259,2]
[398530865,1765795581048,-219.21769339,0.00016259,2]
[398530866,1765795583166,-231.15133319,0.00016259,2]
[398530870,1765795588349,5000.0,0.000157,2]
[398530871,1765795590136,-208.46523192,0.00016259,2]
[398530872,1765795591669,-384.03340444,0.00016161,2]
[398530873,1765795593790,-232.01296446,0.00016161,2]
[398530875,1765795600944,-168.0,0.00015924,2]
[398530876,1765795601083,20000.0,0.00016,30]
[398530877,1765795601125,4000.0,0.000157,2]
[398530889,1765795628282,2956.0,0.000157,2]
[398530890,1765795642281,-32.0,0.00015924,2]
[398530891,1765795642314,-133.58575347,0.00016161,2]
[398530892,1765795645141,-252.57997132,0.00016161,2]
[398530894,1765795647330,-352.8031918,0.00016161,2]
[398530895,1765795649357,-233.50921345,0.00016161,2]
[398530896,1765795659547,-0.28799681,0.00016161,2]
[398530897,1765795659573,-290.39741772,0.00016259,2]
[398530898,1765795660889,-192.8403542,0.00016259,2]
[398530899,1765795662490,-216.38189013,0.00016259,2]
[398530900,1765795664529,-299.59210702,0.00016259,2]
[398530901,1765795666426,-199.41623545,0.00016259,2]
[398530902,1765795667954,-264.42171773,0.00016259,2]
[398530903,1765795673338,-365.16204682,0.00016259,2]
[398530904,1765795675150,-156.3159642,0.00016259,2]
[398530905,1765795676763,-429.41138896,0.00016259,2]
[398530906,1765795678312,-283.06120495,0.00016259,2]
[398530907,1765795679812,-305.64421677,0.00016259,2]
[398530908,1765795681502,-177.92078557,0.00016259,2]
[398530915,1765795716458,-345.76841967,0.00015875,2]
[398530916,1765795719031,-300.0,0.00015875,2]
[398530917,1765795720547,-282.1774,0.00015875,2]
[398530918,1765795726301,-419.71676248,0.00015875,2]
[398530919,1765795728412,-302.97834523,0.00015875,2]
[398530920,1765795730804,-255.54462851,0.00015875,2]
[398530921,1765795732952,-209.7413926,0.00015875,2]
[398530922,1765795739802,-478.97381787,0.00015875,2]
[398530923,1765795743889,-286.60689706,0.00015874,2]
[398530925,1765795746189,-13.39310294,0.00015874,2]
[398530926,1765795746210,-140.33144692,0.00015875,2]
[398530927,1765795748930,-250.0,0.00015875,2]
[398530929,1765795753086,-255.62028926,0.00015875,2]
[398530930,1765795754722,-172.99134662,0.00015875,2]
[398530931,1765795758494,-327.00865338,0.00015875,2]
[398530932,1765795759971,-781.62191169,0.00015875,2]
[398530933,1765795761971,-300.0,0.00015875,2]
[398530934,1765795766966,-258.72547123,0.00015875,2]
[398530935,1765795769213,-478.62704075,0.00015875,2]
[398530936,1765795772637,-207.2151951,0.00015875,2]
[398530937,1765795772795,206.67,0.00015,2]
[398530938,1765795776303,-158.43239575,0.00015875,2]
[398530940,1765795810904,-232.50447191,0.00015874,2]
[398530941,1765795813579,-67.49552809,0.00015874,2]
[398530942,1765795813603,-215.23006275,0.00015874,2]
[398530943,1765795819624,-370.5641563,0.00015874,2]
[398530944,1765795820707,-195.0,0.00015874,2]
[398530945,1765795824975,-214.75808814,0.00015874,2]
[398530946,1765795826457,-164.82065278,0.00015874,2]
[398530947,1765795827916,-39.62704003,0.00015874,2]
[398530948,1765795827939,-125.13104811,0.00015875,2]
[398530949,1765795829462,-152.05522626,0.00015875,2]
[398530971,1765795832886,-220.99585294,0.00015875,2]
[398530972,1765795832940,-901.97416883,0.00015875,2]
[398530973,1765795832956,-422.12347596,0.00015875,2]
[398530974,1765795832991,-6099.9999999,0.00015875,2]
[398530975,1765795833004,-4031.53528395,0.00015875,2]
[398530976,1765795833031,-622.55672686,0.00015875,2]
[398530977,1765795833907,-300.0,0.00015875,2]
[398530978,1765795835490,-503.72976873,0.00015875,2]
[398530979,1765795836810,-280.39407579,0.00015875,2]
[398530980,1765795837376,-1490.36062653,0.00015875,2]
[398530981,1765795837432,-1060.79010355,0.00015875,2]
[398530982,1765795838366,-325.96215171,0.00015875,2]
[398530983,1765795839407,-8212.68697382,0.00015875,2]
[398530984,1765795839416,-4807.52979543,0.00016115,2]
[398530985,1765795839426,-2475.23678673,0.00016159,2]
[398530986,1765795839435,-326073.75470597,0.00016161,2]
[398530987,1765795839460,-3470.90053454,0.00016161,2]
[398530988,1765795839471,-999.0,0.00016161,2]
[398530989,1765795839514,-1670.25,0.00016161,2]
[398530990,1765795839525,-591.566251,0.00016161,2]
[398530991,1765795839536,-1200.97592179,0.00016161,2]
[398530992,1765795839549,-259.34614479,0.00016161,2]
[398530993,1765795839561,-425734.20644191,0.00016161,2]
[398530994,1765795839573,-882.1774001,0.00016215,2]
[398530995,1765795839585,-1000.0,0.00016259,2]
[398530996,1765795839593,-437.96641227,0.00016259,2]
[398530997,1765795839603,-8250.09311706,0.0001626,2]
[398530998,1765795839612,-500.0,0.0001626,2]
[398530999,1765795839621,-500.0,0.0001626,2]
[398531000,1765795839630,-300.0,0.0001626,2]
[398531001,1765795839640,-248.36509458,0.0001626,2]
[398531002,1765795839649,-217.00666179,0.0001626,2]
[398531003,1765795839658,-500.0,0.0001626,2]
[398531004,1765795839668,-339.50078772,0.0001626,2]
[398531005,1765795839677,-531.6672,0.00016261,2]
[398531006,1765795839686,-1000.0,0.00016261,2]
[398531007,1765795839696,-971.61776478,0.00016262,2]
[398531008,1765795839705,-3779.05,0.00016262,2]
[398531009,1765795839715,-253.96,0.00016262,2]
[398531010,1765795839724,-25642.6,0.00016262,2]
[398531011,1765795839733,-150.99,0.00016262,2]
[398531012,1765795839743,-1204.98,0.00016262,2]
[398531013,1765795839752,-273.3,0.00016262,2]
[398531014,1765795839762,-4807.52979537,0.00016353,2]
[398531015,1765795839774,-500.0,0.0001636,2]
[398531016,1765795839783,-531.48,0.0001636,2]
[398531017,1765795839794,-531.48,0.0001636,2]
[398531018,1765795839804,-531.48,0.0001636,2]
[398531019,1765795839813,-500.0,0.0001636,2]
[398531020,1765795839822,-500.0,0.0001636,2]
[398531021,1765795839831,-500.0,0.0001636,2]
[398531022,1765795839840,-500.0,0.0001636,2]
[398531023,1765795839849,-513.8374167,0.0001636,2]
[398531024,1765795839858,-500.0,0.0001636,2]
[398531025,1765795839867,-169.53152199,0.0001636,2]
[398531026,1765795839876,-500.0,0.0001636,2]
[398531027,1765795839885,-500.0,0.0001636,2]
[398531028,1765795839895,-500.0,0.0001636,2]
[398531029,1765795839903,-382.07221643,0.0001636,2]
[398531030,1765795839912,-500.0,0.0001636,2]
[398531031,1765795839921,-500.0,0.0001636,2]
[398531032,1765795839931,-609.67599965,0.0001636,2]
[398531033,1765795839940,-500.0,0.0001636,2]
[398531034,1765795839949,-628.27888275,0.0001636,2]
[398531035,1765795839958,-532.30126089,0.0001636,2]
[398531036,1765795839967,-500.0,0.0001636,2]
[398531037,1765795839976,-1588.81249566,0.00016411,2]
[398531038,1765795839985,-500.0,0.00016438,2]
[398531039,1765795839994,-500.0,0.00016438,2]
[398531040,1765795840003,-500.0,0.00016438,2]
[398531041,1765795840013,-600.0,0.00016438,2]
[398531042,1765795840022,-166.66,0.00016526,2]
[398531043,1765795840030,-166.0,0.00016585,2]
[398531044,1765795840040,-4807.52979537,0.00016592,2]
[398531045,1765795840049,-1022.25146876,0.0001666,2]
[398531046,1765795840057,-1067.68186957,0.0001666,2]
[398531047,1765795840066,-1131.80910919,0.0001666,2]
[398531048,1765795840075,-1004.5608948,0.0001666,2]
[398531049,1765795840084,-1261.09871399,0.0001666,2]
[398531050,1765795840094,-1588.81249566,0.00016661,2]
[398531051,1765795840103,-153.30440339,0.00016699,2]
[398531052,1765795840112,-150.0,0.00016699,2]
[398531053,1765795840120,-150.0,0.00016699,2]
[398531054,1765795840130,-155.42907447,0.00016699,2]
[398531055,1765795840139,-150.69967865,0.00016699,2]
[398531056,1765795840151,-1020.0,0.00016699,2]
[398531057,1765795840160,-150.0,0.00016699,2]
[398531058,1765795840169,-150.0,0.00016699,2]
[398531059,1765795840178,-500.0,0.00016699,2]
[398531060,1765795840187,-500.0,0.00016699,2]
[398531061,1765795840196,-150.0,0.00016699,2]
[398531062,1765795840205,-150.0,0.00016699,2]
[398531063,1765795840214,-150.0,0.00016699,2]
[398531064,1765795840222,-500.0,0.00016699,2]
[398531065,1765795840231,-150.0,0.00016699,2]
[398531066,1765795840240,-500.0,0.00016699,2]
[398531067,1765795840249,-150.0,0.00016699,2]
[398531068,1765795840258,-531.0,0.00016699,2]
[398531069,1765795840267,-500.0,0.00016699,2]
[398531070,1765795840276,-150.0,0.00016723,2]
[398531071,1765795840285,-242.0,0.00016785,2]
[398531072,1765795840295,-374.0,0.000168,2]
[398531073,1765795840304,-527.87957931,0.00016818,2]
[398531074,1765795840314,-4807.52979537,0.0001683,2]
[398531075,1765795840323,-150.0,0.00016836,2]
[398531076,1765795840332,-1020.0,0.00016836,2]
[398531077,1765795840341,-150.0,0.00016836,2]
[398531078,1765795840350,-150.0,0.00016836,2]
[398531079,1765795840360,-500.0,0.00016836,2]
[398531080,1765795840369,-500.0,0.00016836,2]
[398531081,1765795840378,-407.15734767,0.00016836,2]
[398531082,1765795840388,-200.0,0.00016836,2]
[398531083,1765795840397,-500.0,0.00016836,2]
[398531084,1765795840406,-531.0,0.00016836,2]
[398531085,1765795840415,-500.0,0.00016836,2]
[398531086,1765795840424,-166.66,0.00016847,2]
[398531087,1765795840434,-150.0,0.0001686,2]
[398531088,1765795840443,-543.7,0.00016894,2]
[398531089,1765795840453,-280.39237239,0.000169,2]
[398531090,1765795840463,-249.75155348,0.000169,2]
[398531091,1765795840473,-1247.9950198,0.000169,2]
[398531092,1765795840484,-1588.81249566,0.00016911,2]
[398531093,1765795840494,-500.0,0.00016973,2]
[398531094,1765795840504,-379.34447673,0.00016973,2]
[398531095,1765795840514,-500.0,0.00016973,2]
[398531096,1765795840523,-506.79331904,0.00016973,2]
[398531097,1765795840533,-500.0,0.00016973,2]
[398531098,1765795840542,-500.0,0.00016973,2]
[398531099,1765795840551,-500.0,0.00016973,2]
[398531100,1765795840560,-500.0,0.00016973,2]
[398531101,1765795840569,-500.0,0.00016973,2]
[398531102,1765795840579,-500.0,0.00016973,2]
[398531103,1765795840588,-503.38309233,0.00016973,2]
[398531104,1765795840597,-1020.0,0.00016973,2]
[398531105,1765795840607,-200.0,0.00016973,2]
[398531106,1765795840616,-200.0,0.00016973,2]
[398531107,1765795840625,-500.0,0.00016973,2]
[398531108,1765795840634,-500.0,0.00016973,2]
[398531109,1765795840644,-500.0,0.00016973,2]
[398531110,1765795840653,-531.0,0.00016973,2]
[398531111,1765795840662,-500.0,0.00016973,2]
[398531112,1765795840672,-500.0,0.00016973,2]
[398531113,1765795840681,-150.0,0.00016973,2]
[398531114,1765795840690,-527.57313586,0.00016983,2]
[398531115,1765795840702,-862.55,0.00016986,2]
[398531116,1765795840711,-481.25235646,0.00016993,2]
[398531117,1765795840720,-200.0,0.00016997,2]
[398531118,1765795840729,-151.0,0.00016997,2]
[398531119,1765795840738,-151.0,0.00016997,2]
[398531120,1765795840747,-500.0,0.00016999,2]
[398531121,1765795840756,-500.0,0.00016999,2]
[398531122,1765795840765,-500.0,0.00016999,2]
[398531123,1765795840775,-500.0,0.00016999,2]
[398531124,1765795840784,-500.0,0.00016999,2]
[398531125,1765795840793,-500.0,0.00016999,2]
[398531126,1765795840802,-230.43531441,0.00016999,2]
[398531127,1765795840811,-2884319.75699535,0.00017,2]
[398531128,1765795840820,-250.0,0.00017,2]
[398531129,1765795840830,-250.0,0.00017,2]
[398531130,1765795840839,-250.0,0.00017,2]
[398531131,1765795840848,-250.0,0.00017,2]
[398531132,1765795840857,-250.0,0.00017,2]
[398531133,1765795840867,-250.0,0.00017,2]
[398531134,1765795840876,-250.0,0.00017,2]
[398531135,1765795840884,-250.0,0.00017,2]
[398531136,1765795840894,-250.0,0.00017,2]
[398531137,1765795840903,-250.0,0.00017,2]
[398531138,1765795840912,-250.0,0.00017,2]
[398531139,1765795840921,-250.0,0.00017,2]
[398531140,1765795840930,-250.0,0.00017,2]
[398531141,1765795840939,-250.0,0.00017,2]
[398531142,1765795840948,-250.0,0.00017,2]
[398531143,1765795840957,-250.0,0.00017,2]
[398531144,1765795840966,-250.0,0.00017,2]
[398531145,1765795840975,-250.0,0.00017,2]
[398531146,1765795840984,-250.0,0.00017,2]
[398531147,1765795840993,-250.0,0.00017,2]
[398531148,1765795841002,-250.0,0.00017,2]
[398531149,1765795841011,-250.0,0.00017,2]
[398531150,1765795841020,-250.0,0.00017,2]
[398531151,1765795841029,-250.0,0.00017,2]
[398531152,1765795841038,-250.0,0.00017,2]
[398531153,1765795841047,-250.0,0.00017,2]
[398531154,1765795841056,-250.0,0.00017,2]
[398531155,1765795841065,-250.0,0.00017,2]
[398531156,1765795841074,-250.0,0.00017,2]
[398531157,1765795841083,-250.0,0.00017,2]
[398531158,1765795841092,-250.0,0.00017,2]
[398531159,1765795841101,-250.0,0.00017,2]
[398531160,1765795841110,-250.0,0.00017,2]
[398531161,1765795841120,-250.0,0.00017,2]
[398531162,1765795841129,-250.0,0.00017,2]
[398531163,1765795841139,-250.0,0.00017,2]
[398531164,1765795841153,-250.0,0.00017,2]
[398531165,1765795841162,-250.0,0.00017,2]
[398531166,1765795841171,-250.0,0.00017,2]
[398531167,1765795841180,-250.0,0.00017,2]
[398531168,1765795841190,-250.0,0.00017,2]
[398531169,1765795841199,-250.0,0.00017,2]
[398531170,1765795841213,-250.0,0.00017,2]
[398531171,1765795841224,-290.5,0.00017,2]
[398531172,1765795841235,-2705.1681719,0.00017,2]
[398531173,1765795841245,-336678.6003886,0.00017,2]
[398531174,1765795841254,-200.0,0.00017,2]
[398531175,1765795841263,-164.4934205,0.00017,2]
[398531176,1765795841272,-4057.7522579,0.00017,2]
[398531177,1765795841282,-10550.1558708,0.00017,2]
[398531178,1765795841291,-426197.8722217,0.00017,2]
[398531179,1765795841302,-1325.52,0.00017,2]
[398531180,1765795841313,-4550.73245216,0.00017021,2]
[398531181,1765795841322,-4807.52979537,0.00017068,2]
[398531182,1765795841332,-152.37400623,0.00017085,2]
[398531183,1765795841343,-150.0,0.00017088,2]
[398531184,1765795841352,-150.0,0.00017088,2]
[398531185,1765795841362,-150.0,0.00017088,2]
[398531186,1765795841371,-150.0,0.00017088,2]
[398531187,1765795841380,-150.0,0.00017088,2]
[398531188,1765795841390,-150.0,0.00017088,2]
[398531189,1765795841399,-150.00000001,0.00017088,2]
[398531190,1765795841408,-150.00000001,0.00017088,2]
[398531191,1765795841418,-150.0,0.00017088,2]
[398531192,1765795841427,-1020.0,0.0001711,2]
[398531193,1765795841436,-500.0,0.0001711,2]
[398531194,1765795841447,-500.0,0.0001711,2]
[398531195,1765795841456,-500.0,0.0001711,2]
[398531196,1765795841465,-531.0,0.0001711,2]
[398531197,1765795841475,-500.0,0.0001711,2]
[398531198,1765795841486,-500.0,0.0001711,2]
[398531199,1765795841496,-168.0,0.0001713,2]
[398531200,1765795841506,-1588.81249566,0.00017161,2]
[398531201,1765795841516,-543.7,0.00017168,2]
[398531202,1765795841525,-200.0,0.0001717,2]
[398531203,1765795841535,-168.0,0.00017217,2]
[398531204,1765795841544,-280.39237239,0.00017233,2]
[398531205,1765795841554,-1020.0,0.00017247,2]
[398531206,1765795841563,-500.0,0.00017247,2]
[398531207,1765795841577,-500.0,0.00017247,2]
[398531208,1765795841586,-531.0,0.00017247,2]
[398531209,1765795841596,-500.0,0.00017247,2]
[398531210,1765795841605,-500.0,0.00017247,2]
[398531211,1765795841615,-168.0,0.0001726,2]
[398531212,1765795841624,-862.55,0.0001726,3]
[398531213,1765795841633,-300.0,0.0001727,2]
[398531214,1765795841643,-1325.52,0.00017274,2]
[398531215,1765795841652,-547.67,0.0001729,2]
[398531216,1765795841661,-168.0,0.00017305,2]
[398531217,1765795841671,-4807.52979537,0.00017307,2]
[398531218,1765795841681,-168.0,0.00017317,2]
[398531219,1765795841690,-200.0,0.00017342,2]
[398531220,1765795841700,-1460.0,0.00017342,2]
[398531221,1765795841710,-420.0,0.00017358,2]
[398531222,1765795841719,-1020.0,0.00017384,2]
[398531223,1765795841728,-500.0,0.00017384,2]
[398531224,1765795841738,-500.0,0.00017384,2]
[398531225,1765795841748,-531.0,0.00017384,2]
[398531226,1765795841757,-500.0,0.00017384,2]
[398531227,1765795841766,-500.0,0.00017384,2]
[398531228,1765795841775,-553.64373807,0.00017395,2]
[398531229,1765795841785,-300.0,0.00017395,2]
[398531230,1765795841794,-796.20617884,0.00017395,2]
[398531231,1765795841803,-1607.0,0.00017399,2]
[398531232,1765795841812,-3451.0,0.00017399,2]
[398531233,1765795841822,-611.0,0.00017399,2]
[398531234,1765795841832,-1324.0,0.00017399,2]
[398531235,1765795841843,-563.0,0.00017399,2]
[398531236,1765795841853,-589.0,0.00017399,2]
[398531237,1765795841862,-1261.0,0.00017399,2]
[398531238,1765795841873,-150.0,0.00017399,2]
[398531239,1765795841883,-2426.0,0.00017399,2]
[398531240,1765795841892,-1588.81249566,0.00017412,2]
[398531241,1765795841902,-1502.0,0.00017416,2]
[398531242,1765795841914,-543.7,0.00017442,2]
[398531243,1765795841924,-1680.0,0.00017445,2]
[398531244,1765795841937,-465.0,0.0001746,2]
[398531245,1765795841947,-250.0,0.00017461,2]
[398531246,1765795841956,-300.0,0.00017461,2]
[398531247,1765795841966,-410.93205385,0.00017461,2]
[398531248,1765795841975,-195.0,0.00017461,2]
[398531249,1765795841985,-300.0,0.00017461,2]
[398531250,1765795841994,-2500.0,0.00017461,2]
[398531251,1765795842004,-1487.78753636,0.00017461,2]
[398531252,1765795842015,-2500.0,0.00017462,2]
[398531253,1765795842024,-300.0,0.00017462,2]
[398531254,1765795842033,-300.0,0.00017462,2]
[398531255,1765795842043,-300.0,0.00017462,2]
[398531256,1765795842052,-200.0,0.00017515,2]
[398531257,1765795842062,-200.0,0.00017516,2]
[398531258,1765795842071,-200.0,0.00017516,2]
[398531259,1765795842081,-200.0,0.00017516,2]
[398531260,1765795842090,-200.0,0.00017516,2]
[398531261,1765795842100,-250.0,0.00017516,2]
[398531262,1765795842109,-5000.0,0.00017516,3]
[398531263,1765795842119,-1022.63207373,0.00017516,3]
[398531264,1765795842131,-195.0,0.00017516,2]
[398531265,1765795842141,-500.0,0.00017521,2]
[398531266,1765795842154,-1000.0,0.00017521,2]
[398531267,1765795842163,-1000.0,0.00017521,2]
[398531268,1765795842172,-1000.0,0.00017521,2]
[398531269,1765795842182,-1000.0,0.00017521,2]
[398531270,1765795842191,-1000.0,0.00017521,2]
[398531271,1765795842200,-1000.0,0.00017521,2]
[398531272,1765795842210,-1000.0,0.00017521,2]
[398531274,1765795842219,-1020.0,0.00017521,2]
[398531276,1765795842229,-500.0,0.00017521,2]
[398531278,1765795842240,-500.0,0.00017521,2]
[398531279,1765795842250,-531.0,0.00017521,2]
[398531280,1765795842260,-500.0,0.00017521,2]
[398531281,1765795842270,-500.0,0.00017521,2]
[398531282,1765795842280,-862.55,0.00017534,4]
[398531283,1765795842292,-1325.52,0.00017548,2]
[398531284,1765795842302,-168.0,0.0001755,2]
[398531285,1765795842311,-280.39237239,0.00017567,2]
[398531286,1765795842320,-1460.0,0.00017634,2]
[398531287,1765795842330,-465.0,0.0001764,2]
[398531288,1765795842340,-1020.0,0.00017658,2]
[398531289,1765795842349,-500.0,0.00017658,2]
[398531290,1765795842359,-500.0,0.00017658,2]
[398531291,1765795842368,-531.0,0.00017658,2]
[398531292,1765795842378,-500.0,0.00017658,2]
[398531293,1765795842388,-500.0,0.00017658,2]
[398531294,1765795842397,-1588.81249566,0.00017662,2]
[398531295,1765795842407,-200.0,0.0001769,2]
[398531296,1765795842417,-168.0,0.00017711,2]
[398531297,1765795842426,-543.7,0.00017716,2]
[398531299,1765795842437,-168.0,0.00017759,2]
[398531301,1765795842447,-168.0,0.00017759,2]
[398531303,1765795842457,-1020.0,0.00017795,2]
[398531304,1765795842469,-500.0,0.00017795,2]
[398531305,1765795842478,-500.0,0.00017795,2]
[398531306,1765795842488,-531.0,0.00017795,2]
[398531307,1765795842498,-500.0,0.00017795,2]
[398531308,1765795842507,-500.0,0.00017795,2]
[398531309,1765795842528,-862.55,0.00017808,5]
[398531310,1765795842539,-1600.0,0.00017814,2]
[398531311,1765795842548,-465.0,0.0001782,2]
[398531312,1765795842558,-1325.52,0.00017822,2]
[398531313,1765795842567,-1000.0,0.00017862,2]
[398531314,1765795842577,-202.48923913,0.00017885,2]
[398531315,1765795842587,-168.0,0.00017889,2]
[398531316,1765795842597,-280.39237239,0.000179,2]
[398531317,1765795842607,-249.75155346,0.000179,2]
[398531318,1765795842616,-1588.81249566,0.00017912,2]
[398531319,1765795842626,-1460.0,0.00017916,2]
[398531320,1765795842635,-1020.0,0.00017932,2]
[398531321,1765795842644,-500.0,0.00017932,2]
[398531322,1765795842653,-591.68686119,0.00017932,2]
[398531323,1765795842663,-531.0,0.00017932,2]
[398531324,1765795842673,-500.0,0.00017932,2]
[398531325,1765795842683,-500.0,0.00017932,2]
[398531326,1765795842694,-436.60058024,0.00017943,2]
[398531327,1765795842704,-500.0,0.00017945,2]
[398531328,1765795842714,-1502.0,0.00017964,2]
[398531329,1765795842723,-500.0,0.00017972,2]
[398531330,1765795842733,-500.0,0.00017972,2]
[398531331,1765795842742,-1000.20571659,0.00017973,2]
[398531332,1765795842751,-500.0,0.00017973,2]
[398531333,1765795842761,-500.0,0.00017973,2]
[398531334,1765795842770,-161.9068601,0.00017973,2]
[398531335,1765795842779,-506.23953734,0.00017973,2]
[398531336,1765795842789,-501.48299685,0.00017973,2]
[398531337,1765795842800,-500.0,0.00017973,2]
[398531338,1765795842811,-500.0,0.00017973,2]
[398531339,1765795842820,-500.0,0.00017973,2]
[398531340,1765795842830,-500.0,0.00017973,2]
[398531341,1765795842839,-500.0,0.00017973,2]
[398531342,1765795842849,-500.0,0.00017973,2]
[398531343,1765795843461,-500.0,0.00017973,2]
[398531344,1765795843471,-500.0,0.00017973,2]
[398531345,1765795843480,-500.0,0.00017973,2]
[398531346,1765795843490,-500.0,0.00017973,2]
[398531347,1765795843499,-500.0,0.00017973,2]
[398531348,1765795843509,-162.12244894,0.00017973,2]
[398531349,1765795843518,-500.0,0.00017973,2]
[398531350,1765795843527,-555.43018696,0.00017973,2]
[398531351,1765795843537,-500.0,0.00017973,2]
[398531352,1765795843546,-500.0,0.00017973,2]
[398531353,1765795843556,-330.42255021,0.00017973,2]
[398531354,1765795843565,-500.0,0.00017973,2]
[398531355,1765795843575,-501.4576777,0.00017973,2]
[398531356,1765795843584,-500.0,0.00017973,2]
[398531357,1765795843594,-500.0,0.00017973,2]
[398531358,1765795843603,-500.0,0.00017973,2]
[398531359,1765795843613,-334.27240777,0.00017973,2]
[398531360,1765795843622,-500.0,0.00017973,2]
[398531361,1765795843632,-500.0,0.00017973,2]
[398531362,1765795843641,-500.0,0.00017973,2]
[398531363,1765795843650,-518.33993924,0.00017973,2]
[398531364,1765795843659,-500.0,0.00017973,2]
[398531365,1765795843669,-400.74376215,0.00017973,2]
[398531366,1765795843678,-500.18177596,0.00017973,2]
[398531367,1765795843687,-500.0,0.00017973,2]
[398531368,1765795843696,-500.0,0.00017973,2]
[398531369,1765795843706,-500.83863982,0.00017973,2]
[398531370,1765795843715,-509.04453803,0.00017973,2]
[398531371,1765795843724,-500.36886622,0.00017973,2]
[398531372,1765795843733,-156.41020284,0.00017973,2]
[398531373,1765795843744,-500.0,0.00017973,2]
[398531374,1765795843754,-159.96663374,0.00017973,2]
[398531375,1765795843764,-500.0,0.00017973,2]
[398531376,1765795843774,-500.0,0.00017973,2]
[398531377,1765795843784,-500.0,0.00017973,2]
[398531378,1765795843793,-500.0,0.00017973,2]
[398531379,1765795843802,-500.0,0.00017973,2]
[398531380,1765795843811,-500.0,0.00017973,2]
[398531381,1765795843820,-500.0,0.00017973,2]
[398531382,1765795843831,-206.44157274,0.00017973,2]
[398531383,1765795843842,-500.0,0.00017973,2]
[398531384,1765795843852,-150.0,0.00017973,2]
[398531385,1765795843862,-161.48542823,0.00017973,2]
[398531386,1765795843873,-529.55761346,0.00017973,2]
[398531387,1765795843883,-374.08576034,0.00017973,2]
[398531388,1765795843894,-500.0,0.00017973,2]
[398531389,1765795843904,-505.79891275,0.00017973,2]
[398531390,1765795843915,-344.37083674,0.00017973,2]
[398531391,1765795843926,-500.3035834,0.00017973,2]
[398531392,1765795843936,-164.6917699,0.00017973,2]
[398531393,1765795843947,-168.43051183,0.00017973,2]
[398531394,1765795843958,-500.0,0.00017973,2]
[398531395,1765795843968,-500.0,0.00017973,2]
[398531396,1765795843977,-160.9490228,0.00017973,2]
[398531397,1765795843986,-500.0,0.00017973,2]
[398531398,1765795843995,-162.23351129,0.00017973,2]
[398531399,1765795844005,-522.5837689,0.00017973,2]
[398531400,1765795844014,-500.0,0.00017973,2]
[398531401,1765795844023,-500.0,0.00017973,2]
[398531402,1765795844032,-282.36091791,0.00017973,2]
[398531403,1765795844043,-500.0,0.00017973,2]
[398531404,1765795844052,-165.41844383,0.00017973,2]
[398531405,1765795844063,-500.0,0.00017973,2]
[398531406,1765795844073,-500.0,0.00017973,2]
[398531407,1765795844083,-159.3021959,0.00017973,2]
[398531408,1765795844093,-500.0,0.00017973,2]
[398531409,1765795844103,-500.0,0.00017973,2]
[398531410,1765795844115,-207.31663345,0.00017973,2]
[398531411,1765795844124,-160.44286532,0.00017973,2]
[398531412,1765795844135,-500.0,0.00017973,2]
[398531413,1765795844149,-500.0,0.00017973,2]